bitfinex/quotes_ETHUSD_20220218
["timestamp","ask_amount","ask_price","bid_price","bid_amount"]
[1645185405126,0.3,2883.4,2882.7,1.1748]
[1645185405326,0.87563083,2883.4,2882.7,1.1748]
[1645185405523,0.00247276,2883.1,2882.7,1.1748]
[1645185405723,0.00120829,2882.7,2882.5,7.5869]
[1645185405921,0.00120829,2882.7,2882.5,7.8869]
[1645185406121,0.00120829,2882.7,2882.6,0.98868185]
[1645185408667,0.00120829,2882.7,2882.5,8.75451]
[1645185408668,0.00120829,2882.7,2882.5,0.86761]
[1645185408887,0.00120829,2882.7,2882.1,1.8898]
[1645185409080,0.499,2882.6,2882.4,0.00247599]
[1645185409278,0.799,2882.6,2882.4,0.00247599]
[1645185409475,2.67463083,2882.6,2882.4,0.00247599]
[1645185409674,1.97463083,2882.6,2882.4,0.00247599]
[1645185410076,1.97463083,2882.6,2881.6,0.00333319]
[1645185410077,0.86818,2882.1,2881.6,1.05993891]
[1645185410275,3.472773,2882.3,2881.6,1.05993891]
[1645185410276,0.499,2882.0,2881.7,0.00333319]
[1645185410479,0.499,2882.0,2881.9,0.00990533]
[1645185410875,0.499,2882.0,2881.9,0.00852373]
[1645185411075,1.36707,2882.0,2881.9,0.00852373]
[1645185411315,1.36707,2882.0,2881.4,5.55583319]
[1645185411514,1.36707,2882.0,2881.0,3.162]
[1645185411715,1.66707,2882.0,2881.5,1.47849202]
[1645185411916,1.66707,2882.0,2881.0,3.462]
[1645185412115,1.66707,2882.0,2881.3,1.47850298]
[1645185412318,0.8681,2881.9,2881.3,1.47850298]
[1645185412621,0.8681,2881.9,2881.6,0.99865406]
[1645185412818,1.73619,2881.9,2881.5,0.00112119]
[1645185413217,2.01621688,2881.8,2881.5,0.00112119]
[1645185413618,0.799,2882.0,2881.3,2.3464549]
[1645185413819,0.799,2882.0,2881.7,0.88586013]
[1645185415070,0.799,2882.0,2881.7,0.88825567]
[1645185415275,0.799,2882.0,2881.7,0.00239554]
[1645185416074,0.799,2882.0,2881.4,1.47851618]
[1645185416274,0.799,2882.0,2881.2,0.0501]
[1645185416275,1.66705,2882.0,2881.2,0.0501]
[1645185416473,1.66705,2882.0,2881.7,0.00232087]
[1645185416874,5.16705,2882.0,2881.7,0.00232087]
[1645185417075,6.16705,2882.0,2881.7,0.00232087]
[1645185417277,2.66705,2882.0,2881.2,0.0501]
[1645185417475,0.03081199,2881.8,2881.7,0.01916054]
[1645185418272,0.03081199,2881.8,2881.2,0.01926054]
[1645185418575,0.86812,2881.7,2881.2,0.01926054]
[1645185418827,0.3,2881.6,2881.2,0.01926054]
[1645185419035,0.3,2881.6,2880.9,0.05379962]
[1645185419243,0.6724,2881.5,2880.9,0.05379962]
[1645185419439,0.6724,2881.5,2880.0,9.92151]
[1645185419440,6.233,2881.0,2880.4,0.01642148]
[1645185419640,6.233,2880.7,2880.0,0.017278]
[1645185419832,6.233,2880.4,2880.0,0.017278]
[1645185420040,0.6724,2880.3,2880.0,0.017278]
[1645185420437,2.23634,2880.3,2880.0,0.017278]
[1645185420635,0.3559963,2879.0,2878.9,0.00188116]
[1645185420836,2.03108,2880.4,2879.7,0.7528057]
[1645185420837,0.86859,2880.3,2879.7,0.7528057]
[1645185421031,0.499,2880.5,2879.7,0.7528057]
[1645185421232,0.499,2880.5,2880.0,0.00245726]
[1645185421633,1.3675576,2880.5,2880.0,0.00245726]
[1645185421833,0.8684,2880.4,2880.0,0.00245726]
[1645185422030,0.3,2880.3,2880.0,0.00245726]
[1645185422231,0.3,2880.3,2879.7,0.7528057]
[1645185422442,1.73695,2880.3,2880.1,0.00245722]
[1645185422871,3.47395,2880.3,2880.1,0.00245722]
[1645185423269,3.47395,2880.3,2879.7,0.7528057]
[1645185423472,2.60542,2880.3,2879.7,0.7528057]
[1645185423689,2.60542,2880.3,2880.1,0.00245724]
[1645185424273,1.73695,2880.3,2880.1,0.00245724]
[1645185424476,1.73695,2880.3,2879.9,0.97019424]
[1645185424678,1.73695,2880.3,2880.1,0.0024717]
[1645185425680,1.73695,2880.3,2879.9,0.97019424]
[1645185425877,1.73695,2880.3,2880.1,0.0024717]
[1645185426077,0.86851,2880.2,2880.1,0.0024717]
[1645185426927,1.73699,2880.2,2879.9,0.97019424]
[1645185427129,1.73699,2880.2,2880.0,0.00247172]
[1645185428129,1.73699,2880.2,2879.9,0.97019424]
[1645185428435,1.73699,2880.2,2880.0,0.0024744]
[1645185429230,1.73699,2880.2,2879.7,0.7528057]
[1645185429631,1.73699,2880.2,2880.0,0.0024744]
[1645185430268,0.86833,2880.4,2880.0,0.0024744]
[1645185430466,0.86836,2880.6,2879.7,1.0528057]
[1645185430664,1.73679,2880.4,2879.7,1.0528057]
[1645185430869,1.73679,2880.4,2880.0,0.0024744]
[1645185431669,1.73679,2880.4,2879.7,0.7528057]
[1645185431870,0.86845,2880.3,2880.1,0.00247436]
[1645185432277,1.73682,2880.3,2880.1,0.00247436]
[1645185432873,1.73682,2880.3,2879.7,0.7528057]
[1645185433075,1.73715,2880.2,2880.1,0.00247436]
[1645185434123,1.73715,2880.2,2879.7,0.7528057]
[1645185434326,2.60576,2880.2,2880.0,0.00247438]
[1645185434924,0.8686003,2880.1,2880.0,0.00247438]
[1645185435225,5.2372103,2880.1,2879.7,0.7528057]
[1645185435426,6.9745903,2880.1,2879.7,0.7528057]
[1645185435624,6.9745903,2880.1,2879.9,0.00247442]
[1645185436024,3.4746524,2880.1,2879.9,0.00247442]
[1645185436230,2.60599,2880.1,2879.9,0.00247442]
[1645185436425,1.73717,2880.1,2879.9,0.00247442]
[1645185436627,1.73717,2880.1,2879.7,0.7528057]
[1645185436829,1.73725,2880.0,2879.9,0.00247445]
[1645185437773,1.73725,2880.0,2879.7,0.7528057]
[1645185437970,1.73725,2880.0,2879.8,0.00247447]
[1645185438170,0.3,2880.1,2879.8,0.00247447]
[1645185438886,0.3,2880.1,2879.7,1.78395448]
[1645185439076,0.86861,2880.2,2879.8,0.00247447]
[1645185439674,1.73715,2880.0,2879.8,0.00247447]
[1645185440074,1.73715,2880.0,2879.7,0.7528057]
[1645185440475,1.73715,2880.0,2879.8,0.00247449]
[1645185440674,1.73715,2880.0,2879.7,0.40890816]
[1645185440876,3.47436,2880.0,2879.7,0.40890816]
[1645185441077,0.86854,2879.9,2879.7,0.40890816]
[1645185441339,2.34214,2879.9,2879.4,3.1361]
[1645185441541,1.36794,2879.8,2879.4,3.1361]
[1645185442234,1.36794,2879.8,2878.8,0.00330423]
[1645185442235,1.96215652,2879.5,2878.8,0.00330423]
[1645185442439,3.69984652,2879.5,2878.8,0.00330423]
[1645185442637,1.36786,2879.4,2878.8,0.00330423]
[1645185442835,2.66786,2879.4,2879.0,0.00479729]
[1645185443037,2.84146,2879.4,2879.0,0.00479729]
[1645185443638,0.86891,2879.3,2878.8,0.00330423]
[1645185443837,1.36799,2879.2,2878.8,0.00330423]
[1645185444046,3.9749412,2879.2,2878.8,0.00330423]
[1645185444245,3.9749412,2879.2,2877.8,0.1]
[1645185444246,3.5,2878.9,2877.8,0.1]
[1645185444451,3.5,2878.9,2876.8,0.00909414]
[1645185444452,6.233,2877.9,2876.8,0.00909414]
[1645185444650,6.539,2877.2,2876.8,0.00909414]
[1645185444846,6.539,2877.2,2875.9,1.30283897]
[1645185444847,1.16966,2877.0,2875.9,1.30283897]
[1645185445076,1.16966,2877.0,2875.9,1.05283897]
[1645185445077,2.6092569,2876.8,2875.9,1.05283897]
[1645185445275,2.6092569,2876.8,2876.3,1.15932733]
[1645185445276,0.499,2876.7,2876.3,1.15932733]
[1645185445477,0.499,2876.7,2875.9,1.05283897]
[1645185445478,0.499,2876.7,2876.4,2.8605]
[1645185446480,0.799,2876.7,2876.4,2.8605]
[1645185446781,1.36873,2876.7,2876.4,2.8605]
[1645185446974,0.499,2876.7,2876.4,2.8605]
[1645185447176,2.60943,2876.6,2876.4,2.8605]
[1645185447380,1.36859,2876.7,2876.4,2.8605]
[1645185447381,0.499,2876.7,2876.4,2.8605]
[1645185447580,0.51286285,2877.1,2876.7,1.5799536]
[1645185447777,1.01186285,2877.1,2876.7,1.5799536]
[1645185447974,0.499,2877.1,2876.7,1.5299536]
[1645185448827,0.449,2877.1,2876.8,3.50247306]
[1645185449028,0.63719997,2877.9,2876.8,3.50247306]
[1645185449630,0.86935,2877.6,2876.7,0.53242666]
[1645185450030,0.86935,2877.6,2877.2,0.00247288]
[1645185450630,0.86938,2877.5,2877.2,0.00247288]
[1645185450830,1.73885,2877.4,2877.2,0.00247288]
[1645185451029,1.73885,2877.4,2876.7,0.53242666]
[1645185451030,3.47787,2877.4,2876.7,0.53242666]
[1645185451231,4.58166621,2877.4,2876.7,0.53242666]
[1645185452038,0.86958,2877.2,2876.7,0.53242666]
[1645185452232,0.6726,2877.1,2876.7,0.53242666]
[1645185452432,0.86975,2876.9,2876.7,0.53362244]
[1645185452680,0.499,2876.8,2876.7,0.53362244]
[1645185452880,1.45788041,2876.8,2876.7,0.53362244]
[1645185453285,1.45788041,2876.8,2876.7,0.53242666]
[1645185453686,2.32768041,2876.8,2876.7,0.53242666]
[1645185454795,0.499,2876.8,2876.7,0.53242666]
[1645185454992,2.60916,2877.2,2876.7,0.53242666]
[1645185454993,1.3683785,2877.5,2876.7,0.53242666]
[1645185455186,0.499,2877.5,2876.7,0.53242666]
[1645185455393,0.63719997,2877.9,2876.7,0.53242666]
[1645185455588,0.63719997,2877.9,2876.3,23.22242666]
[1645185455787,0.63719997,2877.9,2876.3,3.03242666]
[1645185456185,1.50645997,2877.9,2876.3,3.03242666]
[1645185456820,0.86944,2877.7,2876.2,4.6888]
[1645185457128,0.86944,2877.7,2876.1,1.9212]
[1645185457129,0.86969,2877.0,2876.0,2.9304]
[1645185457432,0.499,2876.9,2876.7,0.00247057]
[1645185458121,0.499,2876.9,2876.0,2.9304]
[1645185458323,0.499,2876.9,2876.1,0.9648807]
[1645185458523,0.499,2876.9,2876.7,0.00247043]
[1645185458828,2.78295,2877.3,2876.7,0.00247043]
[1645185458829,0.6728,2877.3,2876.7,0.00247043]
[1645185459028,0.499,2877.3,2876.7,0.00247043]
[1645185459429,0.499,2877.3,2876.1,4.4648807]
[1645185459630,0.99655268,2877.2,2876.7,0.00247052]
[1645185460076,1.36847,2877.3,2876.7,0.00247052]
[1645185460273,0.86952,2877.0,2876.7,0.00247052]
[1645185460671,0.86952,2877.0,2876.1,4.4648807]
[1645185460875,0.86952,2877.0,2876.7,0.00247052]
[1645185461073,1.73904,2877.0,2876.7,0.00247052]
[1645185461680,0.869575,2876.9,2876.7,0.00247052]
[1645185461879,0.86962,2876.8,2876.0,2.9304]
[1645185462077,0.86962,2876.8,2876.7,0.00247045]
[1645185462879,0.86965,2876.9,2876.7,0.00247045]
[1645185463077,0.86965,2876.9,2876.0,2.9304]
[1645185463828,3.10794,2876.9,2876.0,2.9304]
[1645185464030,0.86974,2876.7,2876.0,2.9304]
[1645185464830,0.86973,2876.6,2876.0,2.9304]
[1645185465029,0.86974,2876.7,2876.0,2.9304]
[1645185465631,0.86974,2876.7,2876.2,0.00246999]
[1645185466031,1.7391577,2876.8,2876.2,0.00246999]
[1645185466232,1.36854,2876.9,2876.2,0.00246999]
[1645185466531,1.36854,2876.9,2876.0,2.9304]
[1645185466932,1.36854,2876.9,2876.4,0.00246991]
[1645185467133,2.2380985,2876.9,2876.4,0.00246991]
[1645185467433,3.1076485,2876.9,2876.4,0.00246991]
[1645185467693,0.1738,2877.5,2876.9,1.57981614]
[1645185467891,2.23765,2878.0,2876.9,1.57981614]
[1645185467892,1.73865,2878.0,2876.9,1.57981614]
[1645185468086,0.869161,2878.2,2877.0,2.8505]
[1645185468486,0.8691,2878.5,2878.0,1.15116732]
[1645185468692,0.8691,2878.5,2878.1,2.7207]
[1645185468891,0.8691,2878.5,2877.5,0.869]
[1645185468892,0.1736,2878.9,2877.5,0.869]
[1645185469115,0.1736,2878.9,2877.6,2.7207]
[1645185469116,0.8690203,2878.7,2877.6,2.7207]
[1645185469296,0.1736,2878.6,2877.6,2.7207]
[1645185469491,0.6726,2878.6,2877.6,2.7207]
[1645185469692,1.12309691,2878.4,2877.6,2.7207]
[1645185469891,3.36039691,2878.4,2877.6,2.7207]
[1645185470093,2.49117691,2878.4,2877.6,2.7207]
[1645185470292,0.8692004,2878.2,2877.6,2.7207]
[1645185470507,0.499,2878.1,2877.6,2.7207]
[1645185470696,0.799,2878.1,2877.6,2.7207]
[1645185470993,0.799,2878.1,2877.0,3.5]
[1645185470994,0.86947,2877.6,2877.0,3.5]
[1645185471191,1.36851,2877.7,2877.0,2.8331]
[1645185471435,0.499,2877.7,2877.0,2.8331]
[1645185473138,2.23761,2877.7,2877.0,2.8331]
[1645185474140,3.10703,2877.7,2877.0,2.8331]
[1645185474540,3.36943,2877.3,2877.0,2.8331]
[1645185474742,2.5,2877.3,2877.0,2.8331]
[1645185474941,2.5,2877.3,2877.0,2.836374]
[1645185475580,3.36945,2877.3,2877.0,0.003274]
[1645185475788,3.36945,2877.3,2876.9,1.57981614]
[1645185475789,3.999,2877.2,2876.9,1.57981614]
[1645185476083,0.499,2877.2,2876.9,1.57981614]
[1645185476282,1.04322,2877.1,2876.9,1.57981614]
[1645185476480,0.499,2877.0,2876.9,1.57981614]
[1645185480743,3.36944,2877.3,2876.9,1.57981614]
[1645185480947,2.5,2877.3,2876.9,1.57981614]
[1645185481743,2.5,2877.3,2876.9,1.58309014]
[1645185482346,3.36945,2877.3,2876.9,1.58309014]
[1645185482585,3.36945,2877.3,2876.9,1.57981614]
[1645185482789,4.2389,2877.3,2876.9,1.57981614]
[1645185482984,5.1083847,2877.3,2876.9,1.57981614]
[1645185483186,0.499,2877.2,2876.9,1.57981614]
[1645185483381,0.87355973,2877.1,2876.9,1.57981614]
[1645185484184,3.5,2877.0,2876.9,1.57981614]
[1645185484494,1.61638435,2877.0,2876.9,1.57981614]
[1645185484684,1.61638435,2877.0,2876.0,0.003274]
[1645185484685,4.5,2876.9,2876.0,0.003274]
[1645185484888,6.11685435,2876.8,2876.0,0.003274]
[1645185485090,0.07407435,2876.7,2876.0,0.003274]
[1645185485286,0.90925434,2876.1,2876.0,0.003274]
[1645185485485,1.40825434,2876.1,2875.8,2.7696]
[1645185485687,1.6691,2876.1,2875.8,2.7696]
[1645185485887,1.9691,2876.1,2875.4,0.003274]
[1645185486092,1.9691,2876.1,2875.2,2.953774]
[1645185486093,2.8429,2876.1,2875.2,2.953774]
[1645185486328,2.8429,2876.1,2875.3,0.003274]
[1645185486329,4.27928,2876.1,2875.3,0.003274]
[1645185486530,4.6503381,2876.1,2875.3,0.003274]
[1645185486729,4.9503381,2876.1,2875.3,0.003274]
[1645185486930,0.88763889,2876.0,2875.3,0.003274]
[1645185487129,1.30563889,2876.0,2875.3,0.003274]
[1645185487332,1.37973104,2876.0,2875.3,0.003274]
[1645185487729,1.37973104,2876.0,2875.9,0.94755508]
[1645185487931,1.30563889,2876.0,2875.9,0.94755508]
[1645185488331,1.67973039,2876.0,2875.9,0.94755508]
[1645185488531,1.37973039,2876.0,2875.9,0.94755508]
[1645185488933,1.67973039,2876.0,2875.9,0.94755508]
[1645185489334,1.37973039,2876.0,2875.9,0.94755508]
[1645185489534,1.67973039,2876.0,2875.9,0.94755508]
[1645185489934,0.7920915,2876.0,2875.9,0.94755508]
[1645185490191,0.3,2876.1,2875.9,2.37400306]
[1645185490487,1.74013,2876.2,2875.9,0.94755508]
[1645185490988,4.23946,2876.5,2875.9,0.94991204]
[1645185491186,0.07407993,2876.4,2876.0,1.4296045]
[1645185491389,0.07407993,2876.4,2876.1,0.003274]
[1645185492088,0.07407993,2876.4,2876.1,0.00551252]
[1645185492989,2.5,2876.5,2876.2,1.42608018]
[1645185493195,2.5,2876.5,2876.3,1.42608018]
[1645185493388,2.5,2876.5,2876.2,1.42935418]
[1645185493590,2.5,2876.5,2876.4,1.07525752]
[1645185493828,2.5,2876.5,2876.4,1.57525752]
[1645185494045,2.5,2876.5,2876.4,3.0013377]
[1645185494638,0.81786441,2877.8,2876.5,6.7536]
[1645185494837,0.64406441,2877.8,2876.5,9.601674]
[1645185495036,0.07405871,2877.7,2876.6,1.42935418]
[1645185495235,0.86933,2877.9,2877.3,1.15397973]
[1645185495236,0.07405871,2877.6,2877.3,1.15397973]
[1645185495441,0.07405871,2877.5,2877.4,0.003274]
[1645185495738,1.73877,2877.9,2877.4,0.5]
[1645185495739,0.07405871,2877.7,2877.4,0.5]
[1645185495937,0.07405871,2877.6,2877.4,0.48]
[1645185496140,0.07405871,2877.5,2876.8,0.003274]
[1645185496340,2.5,2877.3,2876.8,1.77351537]
[1645185496547,2.5,2877.3,2877.1,0.97407008]
[1645185496741,2.5,2877.5,2877.1,0.97407008]
[1645185496941,2.5,2877.5,2877.2,0.003274]
[1645185497141,0.07404838,2877.4,2877.2,0.003274]
[1645185497344,2.5,2877.7,2877.2,1.42874789]
[1645185497588,0.07404381,2877.6,2877.2,1.21670715]
[1645185497788,0.64406441,2878.4,2877.6,1.73792]
[1645185498083,2.5,2877.9,2877.6,2.75482]
[1645185498285,1.13236917,2877.9,2877.8,5.5]
[1645185498483,4.14406441,2878.7,2877.8,5.5]
[1645185498484,1.13236917,2878.0,2877.8,5.84425315]
[1645185498680,0.64406441,2878.7,2877.8,5.84425315]
[1645185499091,0.64406441,2878.7,2878.0,0.86891]
[1645185499290,0.64406441,2878.8,2878.3,0.85009254]
[1645185499687,0.64406441,2878.9,2878.3,0.85009254]
[1645185500289,0.64406441,2878.9,2878.3,1.71896254]
[1645185500492,0.1736,2879.6,2878.3,1.71896254]
[1645185500493,0.64406441,2879.1,2878.9,1.0036484]
[1645185500696,0.11427632,2879.2,2878.9,1.0036484]
[1645185500894,0.87563083,2879.9,2879.0,23.163]
[1645185501090,0.87563083,2879.9,2879.0,23.50725315]
[1645185501328,0.87563083,2880.0,2879.0,3.31725315]
[1645185501530,0.87563083,2880.0,2879.1,3.5]
[1645185501735,0.87563083,2880.2,2879.8,1.14850777]
[1645185501931,2.5,2880.6,2879.8,0.34425315]
[1645185501932,0.87563083,2880.6,2879.8,0.34425315]
[1645185502327,0.87563083,2880.5,2879.8,0.34425315]
[1645185502828,0.87563083,2880.6,2879.8,0.34425315]
[1645185503026,0.87563083,2880.7,2880.1,1.17565217]
[1645185503227,0.87563083,2880.7,2880.2,2.7245]
[1645185503426,0.87563083,2880.7,2880.2,2.12895255]
[1645185503427,0.5,2880.5,2880.2,2.12895255]
[1645185503827,0.87563083,2880.9,2880.2,2.12895255]
[1645185504033,0.00223297,2880.8,2880.2,2.12895255]
[1645185504237,0.17563297,2880.8,2880.2,2.12895255]
[1645185504833,0.00223297,2880.8,2880.2,5.9732057]
[1645185505086,0.89891068,2881.5,2880.4,0.86816]
[1645185505283,0.02327985,2881.5,2880.5,3.5]
[1645185505481,0.02327985,2881.5,2880.4,0.86816]
[1645185505482,0.00223304,2880.8,2880.4,0.86816]
[1645185505683,0.00223304,2880.8,2880.6,0.90858026]
[1645185506088,0.00223304,2880.8,2880.6,1.40858026]
[1645185506288,0.02327985,2881.5,2880.6,0.90858026]
[1645185506487,0.02327985,2881.5,2881.3,0.5]
[1645185507495,0.1734,2881.4,2881.3,0.5]
[1645185507691,0.86842,2881.1,2880.2,2.12895255]
[1645185507892,0.1734,2881.0,2880.2,2.12895255]
[1645185508692,0.86845,2881.0,2880.2,2.12895255]
[1645185508935,0.00127795,2880.8,2880.2,2.12895255]
[1645185509141,0.1734,2880.7,2880.2,2.12895255]
[1645185509333,0.5914,2880.7,2880.2,2.12895255]
[1645185509539,0.8914,2880.7,2880.2,2.12895255]
[1645185509932,3.16100629,2880.7,2880.2,2.12895255]
[1645185510135,3.16100629,2880.7,2879.3,3.5]
[1645185510335,1.0,2880.6,2879.3,2.678]
[1645185510537,0.5916,2880.5,2879.3,2.678]
[1645185510933,0.86866,2880.3,2879.3,2.678]
[1645185511134,0.86871,2880.2,2879.3,3.63222758]
[1645185511333,0.3,2880.1,2879.3,3.63222758]
[1645185512038,0.16871,2880.2,2879.3,3.63222758]
[1645185512039,0.86869,2880.0,2879.3,3.63222758]
[1645185512233,0.86869,2880.0,2879.3,2.678]
[1645185512684,0.8687,2879.9,2879.3,2.678]
[1645185513284,0.8687,2879.9,2879.4,0.90868603]
[1645185513285,1.1687,2879.9,2879.4,0.90868603]
[1645185513890,0.86875,2879.8,2879.3,2.678]
[1645185514092,1.7375145,2879.8,2879.3,2.678]
[1645185514289,2.6062845,2879.8,2879.3,2.678]
[1645185514892,2.6062845,2879.8,2879.3,3.60815383]
[1645185515492,1.73752,2879.8,2879.3,3.60815383]
[1645185515692,1.73753,2880.0,2879.3,3.60815383]
[1645185515693,0.8686,2880.0,2879.3,3.60815383]
[1645185515895,0.3,2880.1,2879.3,3.60815383]
[1645185516092,0.3,2880.2,2879.3,3.60815383]
[1645185516329,0.3,2880.3,2879.3,3.60815383]
[1645185516529,0.4736,2880.4,2879.3,3.60815383]
[1645185516729,0.86869,2879.8,2879.3,3.60815383]
[1645185517932,0.86859,2880.0,2879.3,3.60815383]
[1645185518133,0.3,2879.9,2879.3,3.60815383]
[1645185518534,0.418,2880.5,2879.3,3.60815383]
[1645185518739,0.00243929,2880.8,2879.4,15.0]
[1645185518947,0.00243929,2880.8,2879.9,5.0]
[1645185519138,0.80924915,2881.8,2880.0,3.5]
[1645185519340,0.1734,2882.3,2880.3,5.0]
[1645185519535,0.1734,2882.3,2880.1,6.918]
[1645185519536,1.15126619,2882.0,2881.0,1.11535264]
[1645185519736,1.15126619,2882.0,2880.6,1.73606]
[1645185519943,0.86811,2881.9,2880.7,0.1734]
[1645185520183,1.73614,2881.9,2880.7,0.1734]
[1645185520387,0.8683231,2881.4,2880.4,5.4759]
[1645185520586,0.8683231,2881.4,2880.4,2.6654]
[1645185520986,0.86838,2881.0,2880.4,2.6654]
[1645185521585,0.3,2880.9,2880.4,2.6654]
[1645185521789,1.16848,2880.9,2880.4,2.6654]
[1645185522188,1.06986453,2880.6,2880.4,2.6654]
[1645185522389,0.86848,2880.9,2880.4,2.6654]
[1645185522792,0.86847,2880.7,2880.4,2.6654]
[1645185523394,1.12561912,2880.8,2880.4,2.6654]
[1645185523595,1.42561912,2880.8,2880.4,2.6654]
[1645185523832,1.99407912,2880.8,2880.4,2.6654]
[1645185524032,2.29407912,2880.8,2880.4,2.6654]
[1645185524233,1.99407912,2880.8,2880.4,2.6654]
[1645185524432,4.03103022,2880.8,2880.4,2.6654]
[1645185524634,1.73693,2880.8,2880.4,2.6654]
[1645185524832,0.86847,2880.8,2880.4,2.6654]
[1645185525032,1.73692,2880.8,2880.4,2.6654]
[1645185525438,0.8685141,2880.7,2880.4,2.6654]
[1645185525636,0.97947125,2880.6,2880.4,2.6654]
[1645185526034,0.86847,2880.8,2880.4,2.6654]
[1645185526837,1.16847,2880.8,2880.4,2.6654]
[1645185527037,0.84032592,2880.7,2880.4,2.6654]
[1645185527679,2.03691,2880.8,2880.4,2.6654]
[1645185527884,1.16847,2880.8,2880.4,2.6654]
[1645185528480,0.86847,2880.8,2880.4,2.6654]
[1645185528885,0.00244227,2880.9,2880.4,2.6654]
[1645185529187,0.86835,2881.1,2880.4,2.6654]
[1645185529188,1.16835,2881.1,2880.4,2.6654]
[1645185529484,0.00244229,2880.9,2880.4,2.6654]
[1645185529984,0.87081229,2880.9,2880.4,2.6654]
[1645185530391,0.86837,2880.9,2880.4,2.6654]
[1645185530583,0.87081231,2880.9,2880.4,2.6654]
[1645185530987,0.86845,2880.8,2880.4,2.6654]
[1645185531330,2.60543,2880.8,2880.4,2.6654]
[1645185532229,1.13427647,2880.7,2880.4,2.6654]
[1645185532432,2.00271647,2880.7,2880.4,2.6654]
[1645185532633,0.86844,2880.7,2880.4,2.6654]
[1645185532835,1.16845,2880.8,2880.4,2.6654]
[1645185533733,0.86845,2880.8,2880.4,2.6654]
[1645185533935,1.02404947,2880.9,2880.4,2.6654]
[1645185534137,1.02649176,2880.9,2880.4,2.6654]
[1645185534335,1.62649176,2880.9,2880.4,2.6654]
[1645185534936,1.7369577,2880.8,2880.4,2.6654]
[1645185535878,0.86847,2880.8,2880.4,2.6654]
[1645185536276,0.6,2880.9,2880.4,2.6654]
[1645185536682,0.418,2880.8,2879.6,0.1734]
[1645185536880,0.718,2880.8,2879.3,2.525]
[1645185537083,1.73734,2880.7,2879.3,2.525]
[1645185537380,0.418,2880.6,2879.3,2.525]
[1645185537580,0.718,2880.6,2879.3,2.525]
[1645185537778,1.02733008,2880.5,2879.5,0.97065003]
[1645185537979,1.02733008,2880.5,2879.3,2.525]
[1645185538376,1.89590928,2880.5,2879.3,2.525]
[1645185538831,0.86856,2880.4,2879.4,1.19409863]
[1645185539035,1.73711,2880.4,2879.4,1.19409863]
[1645185539436,1.73711,2880.4,2879.3,2.525]
[1645185539437,0.86856,2880.4,2879.3,2.525]
[1645185540438,0.86856,2880.4,2879.3,3.59921145]
[1645185541237,2.03719,2880.3,2879.3,3.59921145]
[1645185541437,0.3,2880.3,2879.3,3.9434646]
[1645185541637,0.3,2880.4,2879.3,3.59921145]
[1645185542336,1.17563083,2880.4,2879.3,3.59921145]
[1645185542878,1.20030198,2880.4,2879.3,3.59921145]
[1645185543282,1.20030198,2880.4,2879.3,4.46776145]
[1645185543487,0.32467115,2880.4,2879.4,1.82411402]
[1645185543681,0.32467115,2880.4,2879.5,1.47986087]
[1645185543888,0.32467115,2880.4,2879.5,1.47853828]
[1645185544486,0.32467115,2880.4,2879.8,1.08281506]
[1645185545386,0.62467115,2880.4,2879.8,1.08281506]
[1645185545789,0.32467115,2880.4,2879.8,1.08281506]
[1645185546628,0.02467115,2880.4,2879.8,1.08281506]
[1645185547437,0.02467115,2880.4,2879.9,2.12684356]
[1645185547631,0.02467115,2880.4,2880.0,0.34425315]
[1645185547832,0.02467115,2880.4,2880.0,2.08068315]
[1645185548031,0.9024185,2880.9,2880.0,2.08068315]
[1645185548233,0.9024185,2880.9,2880.0,2.38068315]
[1645185548433,0.02452986,2880.9,2880.8,0.85495457]
[1645185548637,0.02678782,2880.9,2880.8,0.85495457]
[1645185548834,0.02678782,2880.9,2880.3,0.1734]
[1645185549036,0.02678782,2880.9,2880.3,1.1734]
[1645185549535,0.02452986,2880.9,2880.3,1.1734]
[1645185549736,0.0267852,2880.9,2880.3,1.1734]
[1645185549936,0.0267852,2880.9,2880.7,1.14423045]
[1645185550788,0.02452986,2880.9,2880.7,1.14423045]
[1645185550990,0.02678528,2880.9,2880.7,1.14423045]
[1645185551990,0.02452986,2880.9,2880.7,1.14423045]
[1645185552191,0.02678528,2880.9,2880.7,1.14423045]
[1645185552792,0.00225542,2880.9,2880.7,1.14423045]
[1645185552990,0.00225542,2880.9,2880.7,21.33423045]
[1645185553194,0.87563083,2881.7,2881.4,1.13634221]
[1645185553393,0.87563083,2881.8,2880.7,1.0]
[1645185553594,0.87563083,2881.8,2880.6,2.3874]
[1645185553836,1.17563083,2881.8,2880.6,2.3874]
[1645185554535,0.00225567,2881.3,2881.1,0.93528927]
[1645185555638,1.74371483,2881.9,2881.1,0.93528927]
[1645185555639,0.87563083,2881.9,2881.1,0.93528927]
[1645185555839,0.00225567,2881.3,2881.1,0.93528927]
[1645185556841,1.74375323,2881.8,2881.1,0.93528927]
[1645185557041,0.00225561,2881.3,2881.1,0.93528927]
[1645185558079,0.8681962,2881.5,2881.1,0.93528927]
[1645185558278,0.00225561,2881.3,2881.1,0.93528927]
[1645185559087,1.73633,2881.8,2881.1,0.93528927]
[1645185559285,0.87563083,2881.9,2881.1,0.93528927]
[1645185559484,0.00225561,2881.3,2881.1,0.93528927]
[1645185560282,0.87563083,2881.9,2881.1,0.93528927]
[1645185560683,0.00225562,2881.3,2881.1,0.93528927]
[1645185561529,0.87563083,2881.9,2881.1,0.93528927]
[1645185561735,0.00225562,2881.3,2881.1,0.93528927]
[1645185562432,0.01481168,2881.3,2881.1,0.93528927]
[1645185562631,0.01481168,2881.3,2881.2,0.02636987]
[1645185562831,0.01255606,2881.3,2881.2,0.02636987]
[1645185563030,0.01481168,2881.3,2881.2,0.02636987]
[1645185564037,0.01255606,2881.3,2881.2,0.02636987]
[1645185567385,0.01255606,2881.3,2881.2,0.01398954]
[1645185567386,2.06037129,2881.3,2881.2,0.01398954]
[1645185567783,2.36037129,2881.3,2880.4,2.97156987]
[1645185568184,2.36037129,2881.3,2880.4,0.02636987]
[1645185568584,0.8683451,2881.1,2880.4,0.02636987]
[1645185569042,0.68569302,2881.1,2880.4,0.02636987]
[1645185570640,0.98569302,2881.1,2880.4,0.02636987]